[Event "*** Titled Tuesday Blitz"]
[Site "Chess.com"]
[Date "2019.05.07"]
[Round "6"]
[White "TheGandhiOfChess"]
[Black "sergeikim"]
[Result "1-0"]
[WhiteElo "2386"]
[BlackElo "2454"]
[TimeControl "180+2"]
[EndTime "14:26:31 PDT"]
[Termination "TheGandhiOfChess won by resignation"]

1. e4 {[%clk 0:02:59]} 1... e5 {[%clk 0:02:59.9]} 2. Nf3 {[%clk 0:02:59.6]} 2...
Nc6 {[%clk 0:03:00.9]} 3. d4 {[%clk 0:02:58.4]} 3... exd4 {[%clk 0:03:01.2]} 4.
Nxd4 {[%clk 0:02:58.6]} 4... Bc5 {[%clk 0:03:01.9]} 5. Nxc6 {[%clk 0:02:57.8]}
5... Qf6 {[%clk 0:03:01.8]} 6. Qf3 {[%clk 0:02:58]} 6... dxc6 {[%clk 0:03:02.5]}
7. Nc3 {[%clk 0:02:57.3]} 7... Be6 {[%clk 0:03:03.3]} 8. Bd3 {[%clk 0:02:55.4]}
8... O-O-O {[%clk 0:03:03.2]} 9. Be3 {[%clk 0:02:54.1]} 9... Bd4 {[%clk
0:03:02.1]} 10. Qxf6 {[%clk 0:02:48.9]} 10... Nxf6 {[%clk 0:03:02.1]} 11. Bxd4
{[%clk 0:02:49.3]} 11... Rxd4 {[%clk 0:03:00.8]} 12. Ne2 {[%clk 0:02:50.3]}
12... Rd7 {[%clk 0:02:53.3]} 13. f3 {[%clk 0:02:49.7]} 13... c5 {[%clk 0:02:53]}
14. b3 {[%clk 0:02:47.8]} 14... c6 {[%clk 0:02:50.5]} 15. O-O-O {[%clk
0:02:45.8]} 15... Kc7 {[%clk 0:02:49]} 16. g4 {[%clk 0:02:42.7]} 16... b5 {[%clk
0:02:44]} 17. c4 {[%clk 0:02:34.3]} 17... Rhd8 {[%clk 0:02:40.7]} 18. Nf4 {[%clk
0:02:24.6]} 18... Kb6 {[%clk 0:02:12.8]} 19. e5 {[%clk 0:02:15.6]} 19... Ne8
{[%clk 0:02:09.6]} 20. Nxe6 {[%clk 0:02:10.3]} 20... fxe6 {[%clk 0:02:09.4]} 21.
Bxh7 {[%clk 0:02:09.9]} 21... Ka5 {[%clk 0:02:04.8]} 22. Rxd7 {[%clk 0:02:07.1]}
22... Rxd7 {[%clk 0:02:05]} 23. Be4 {[%clk 0:02:06.8]} 23... Rc7 {[%clk
0:02:01.2]} 24. Kb2 {[%clk 0:02:04.8]} 24... b4 {[%clk 0:01:52.5]} 25. Rd1
{[%clk 0:02:05.4]} 25... g5 {[%clk 0:01:53.1]} 26. Rd8 {[%clk 0:01:57.1]} 26...
Re7 {[%clk 0:01:53.9]} 27. Bxc6 {[%clk 0:01:56.8]} 27... Nc7 {[%clk 0:01:54]}
28. Rg8 {[%clk 0:01:55.9]} 28... Rh7 {[%clk 0:01:52.8]} 29. Rxg5 {[%clk
0:01:54.9]} 29... Rxh2+ {[%clk 0:01:52.3]} 30. Kb1 {[%clk 0:01:56]} 30... Rh1+
{[%clk 0:01:52.8]} 31. Kc2 {[%clk 0:01:57]} 31... Rh2+ {[%clk 0:01:53.7]} 32.
Kd3 {[%clk 0:01:58.2]} 32... Rxa2 {[%clk 0:01:54]} 33. Rg7 {[%clk 0:01:59]}
33... Kb6 {[%clk 0:01:54]} 34. Ba4 {[%clk 0:01:58.4]} 34... Rf2 {[%clk
0:01:45.4]} 35. Ke3 {[%clk 0:01:57.9]} 35... Rf1 {[%clk 0:01:45.7]} 36. g5
{[%clk 0:01:58.3]} 36... Re1+ {[%clk 0:01:46]} 37. Kf4 {[%clk 0:01:59.2]} 37...
Rh1 {[%clk 0:01:42.7]} 38. g6 {[%clk 0:01:59.7]} 38... Rh4+ {[%clk 0:01:43.3]}
39. Kg5 {[%clk 0:02:00.4]} 39... Rh3 {[%clk 0:01:44.2]} 40. f4 {[%clk
0:02:01.4]} 40... Nd5 {[%clk 0:01:42.3]} 41. cxd5 {[%clk 0:02:02]} 41... exd5
{[%clk 0:01:43.3]} 42. e6 {[%clk 0:02:03]} 42... c4 {[%clk 0:01:43.9]} 43. bxc4
{[%clk 0:02:03.9]} 43... dxc4 {[%clk 0:01:44]} 44. e7 {[%clk 0:02:05.1]} 44...
Re3 {[%clk 0:01:44.4]} 45. f5 {[%clk 0:01:55.4]} 45... b3 {[%clk 0:01:43.7]} 46.
f6 {[%clk 0:01:55.5]} 46... b2 {[%clk 0:01:41.7]} 47. Bc2 {[%clk 0:01:56.4]}
47... Re2 {[%clk 0:01:42.7]} 48. Bb1 {[%clk 0:01:50]} 48... Re1 {[%clk
0:01:43.4]} 49. Ba2 {[%clk 0:01:50.9]} 49... c3 {[%clk 0:01:42.6]} 50. Bb1
{[%clk 0:01:32.7]} 50... Rg1+ {[%clk 0:01:31.4]} 51. Kf4 {[%clk 0:01:30.8]}
51... Rxb1 {[%clk 0:01:29]} 52. e8=Q {[%clk 0:01:31.4]} 52... Rf1+ {[%clk
0:01:29.5]} 53. Kg3 {[%clk 0:01:29.6]} 53... b1=Q {[%clk 0:01:26.6]} 54. Qb8+
{[%clk 0:01:30.3]} 54... Kc5 {[%clk 0:01:25.1]} 55. Rc7+ {[%clk 0:01:30.6]}
55... Kd4 {[%clk 0:01:24.9]} 56. Qxb1 {[%clk 0:01:30.1]} 56... Rxb1 {[%clk
0:01:24.4]} 57. f7 {[%clk 0:01:31.2]} 57... Rg1+ {[%clk 0:01:23.1]} 58. Kf2
{[%clk 0:01:29.8]} 1-0

[Event "*** Titled Tuesday Blitz"]
[Site "Chess.com"]
[Date "2019.05.07"]
[Round "6"]
[White "c63_amg"]
[Black "Gentlejimmy7"]
[Result "0-1"]
[WhiteElo "2654"]
[BlackElo "2481"]
[TimeControl "180+2"]
[EndTime "14:26:40 PDT"]
[Termination "Gentlejimmy7 won on time"]

1. e4 {[%clk 0:03:01.9]} 1... c5 {[%clk 0:02:58.8]} 2. Nf3 {[%clk 0:03:02.3]}
2... e6 {[%clk 0:02:59.7]} 3. d4 {[%clk 0:03:03.6]} 3... cxd4 {[%clk 0:03:00]}
4. Nxd4 {[%clk 0:03:05.5]} 4... Nf6 {[%clk 0:03:01]} 5. Nc3 {[%clk 0:03:05]}
5... Nc6 {[%clk 0:03:02.1]} 6. a3 {[%clk 0:02:57.3]} 6... Be7 {[%clk 0:02:51.1]}
7. Nxc6 {[%clk 0:02:44.5]} 7... bxc6 {[%clk 0:02:40.1]} 8. e5 {[%clk 0:02:45.7]}
8... Nd5 {[%clk 0:02:37.8]} 9. Nxd5 {[%clk 0:02:40.3]} 9... cxd5 {[%clk
0:02:37.3]} 10. Bd3 {[%clk 0:02:42.2]} 10... d6 {[%clk 0:02:31.5]} 11. Qg4
{[%clk 0:02:02]} 11... g6 {[%clk 0:02:22.8]} 12. Bf4 {[%clk 0:01:39.2]} 12...
dxe5 {[%clk 0:01:30.6]} 13. Bxe5 {[%clk 0:01:39.2]} 13... Bf6 {[%clk 0:01:31.1]}
14. Bb5+ {[%clk 0:01:14.9]} 14... Kf8 {[%clk 0:01:24.2]} 15. Bxf6 {[%clk
0:01:05.6]} 15... Qxf6 {[%clk 0:01:24.5]} 16. Qb4+ {[%clk 0:01:04.5]} 16... Kg7
{[%clk 0:01:25.1]} 17. O-O {[%clk 0:00:54.7]} 17... a5 {[%clk 0:01:26.6]} 18.
Qc5 {[%clk 0:00:50.9]} 18... Ba6 {[%clk 0:01:23.5]} 19. Bxa6 {[%clk 0:00:39.2]}
19... Rxa6 {[%clk 0:01:25.4]} 20. c3 {[%clk 0:00:40]} 20... Rb8 {[%clk
0:01:25.5]} 21. b4 {[%clk 0:00:37.6]} 21... Rab6 {[%clk 0:01:00]} 22. Rfc1
{[%clk 0:00:30.6]} 22... Rb5 {[%clk 0:01:00.2]} 23. Qc7 {[%clk 0:00:31.1]} 23...
axb4 {[%clk 0:00:59.8]} 24. cxb4 {[%clk 0:00:30.4]} 24... R5b7 {[%clk
0:01:00.8]} 25. Qd6 {[%clk 0:00:24.6]} 25... Rb6 {[%clk 0:00:59.7]} 26. Qc5
{[%clk 0:00:25.3]} 26... Rb5 {[%clk 0:01:00.4]} 27. Qd6 {[%clk 0:00:26.4]} 27...
R5b6 {[%clk 0:01:01.4]} 28. Qc7 {[%clk 0:00:25.9]} 28... R6b7 {[%clk 0:01:02.2]}
29. Qg3 {[%clk 0:00:26.7]} 29... h5 {[%clk 0:01:03]} 30. h4 {[%clk 0:00:27.3]}
30... e5 {[%clk 0:00:58.4]} 31. Rc5 {[%clk 0:00:26.3]} 31... Rb5 {[%clk
0:00:59.3]} 32. Rxb5 {[%clk 0:00:23.3]} 32... Rxb5 {[%clk 0:01:00.5]} 33. Qd3
{[%clk 0:00:23.6]} 33... e4 {[%clk 0:00:57.5]} 34. Qb1 {[%clk 0:00:18.4]} 34...
Qc3 {[%clk 0:00:53.8]} 35. Ra2 {[%clk 0:00:18.6]} 35... d4 {[%clk 0:00:51.5]}
36. Qxe4 {[%clk 0:00:12.8]} 36... d3 {[%clk 0:00:52.2]} 37. Kh2 {[%clk
0:00:06.9]} 37... Re5 {[%clk 0:00:44.3]} 38. Qf4 {[%clk 0:00:06.1]} 38... Re2
{[%clk 0:00:39.6]} 0-1

[Event "*** Titled Tuesday Blitz"]
[Site "Chess.com"]
[Date "2019.05.07"]
[Round "6"]
[White "Taron_Shagbazyan"]
[Black "SoltaniciR"]
[Result "1-0"]
[WhiteElo "2732"]
[BlackElo "2510"]
[TimeControl "180+2"]
[EndTime "14:26:44 PDT"]
[Termination "Taron_Shagbazyan won by resignation"]

1. d4 {[%clk 0:02:00.8]} 1... Nf6 {[%clk 0:02:58.9]} 2. c4 {[%clk 0:02:02]} 2...
Nc6 {[%clk 0:03:00]} 3. Nc3 {[%clk 0:02:02.4]} 3... e5 {[%clk 0:03:00.9]} 4. d5
{[%clk 0:02:01.4]} 4... Ne7 {[%clk 0:03:02.4]} 5. e4 {[%clk 0:01:57.9]} 5... Ng6
{[%clk 0:03:03.5]} 6. Be3 {[%clk 0:01:55.5]} 6... Bb4 {[%clk 0:03:04.2]} 7. Bd3
{[%clk 0:01:48.9]} 7... Bxc3+ {[%clk 0:03:04.4]} 8. bxc3 {[%clk 0:01:50.2]} 8...
d6 {[%clk 0:03:05.7]} 9. f3 {[%clk 0:01:49.8]} 9... O-O {[%clk 0:03:02.9]} 10.
g3 {[%clk 0:01:49.5]} 10... Nd7 {[%clk 0:02:58.4]} 11. h4 {[%clk 0:01:49.6]}
11... c6 {[%clk 0:02:56.5]} 12. h5 {[%clk 0:01:50.3]} 12... Ne7 {[%clk
0:02:57.5]} 13. g4 {[%clk 0:01:46.3]} 13... Qc7 {[%clk 0:02:51.9]} 14. Qd2
{[%clk 0:01:45.6]} 14... cxd5 {[%clk 0:02:51.8]} 15. cxd5 {[%clk 0:01:44.4]}
15... Nc5 {[%clk 0:02:52.8]} 16. Bc2 {[%clk 0:01:40.5]} 16... Bd7 {[%clk
0:02:53.8]} 17. Ne2 {[%clk 0:01:40.8]} 17... Rac8 {[%clk 0:02:48.1]} 18. Rc1
{[%clk 0:01:36.6]} 18... b6 {[%clk 0:02:35.7]} 19. Ng3 {[%clk 0:01:28.9]} 19...
Nb7 {[%clk 0:02:02.1]} 20. Bb1 {[%clk 0:01:27.9]} 20... Na5 {[%clk 0:02:00.4]}
21. Bd3 {[%clk 0:01:07.5]} 21... Nc4 {[%clk 0:02:01.2]} 22. Bxc4 {[%clk
0:01:08.4]} 22... Qxc4 {[%clk 0:02:03.1]} 23. Nf5 {[%clk 0:01:07.6]} 23... Bxf5
{[%clk 0:01:53.8]} 24. gxf5 {[%clk 0:01:09.5]} 24... f6 {[%clk 0:01:55]} 25. Rg1
{[%clk 0:01:03.1]} 25... Rf7 {[%clk 0:01:55.4]} 26. Rc2 {[%clk 0:01:02]} 26...
b5 {[%clk 0:01:41.4]} 27. Kd1 {[%clk 0:00:58.2]} 27... a5 {[%clk 0:01:40.2]} 28.
Bb6 {[%clk 0:00:49.9]} 28... a4 {[%clk 0:01:33.7]} 29. Ba5 {[%clk 0:00:51.1]}
29... Ra8 {[%clk 0:01:20.9]} 30. Bb4 {[%clk 0:00:51.5]} 30... Nc8 {[%clk
0:01:21.9]} 31. h6 {[%clk 0:00:51.2]} 31... Raa7 {[%clk 0:01:20.2]} 32. Qe3
{[%clk 0:00:48.2]} 32... Kh8 {[%clk 0:01:14.7]} 33. Rcg2 {[%clk 0:00:48.8]}
33... Rad7 {[%clk 0:00:55.4]} 34. hxg7+ {[%clk 0:00:48.6]} 34... Rxg7 {[%clk
0:00:55.9]} 35. Qh6 {[%clk 0:00:49.3]} 35... Qc7 {[%clk 0:00:13.5]} 36. Qxf6
{[%clk 0:00:49.8]} 36... Kg8 {[%clk 0:00:14.1]} 37. Qe6+ {[%clk 0:00:48.8]}
37... Kf8 {[%clk 0:00:10.2]} 38. f6 {[%clk 0:00:47.1]} 38... Rxg2 {[%clk
0:00:08.4]} 39. Rxg2 {[%clk 0:00:49]} 39... Rf7 {[%clk 0:00:09.4]} 40. Qg4
{[%clk 0:00:44.8]} 40... Rxf6 {[%clk 0:00:10.6]} 41. Qg8+ {[%clk 0:00:45.4]}
41... Ke7 {[%clk 0:00:11.7]} 42. Rg7+ {[%clk 0:00:46.8]} 1-0

[Event "*** Titled Tuesday Blitz"]
[Site "Chess.com"]
[Date "2019.05.07"]
[Round "6"]
[White "monalize"]
[Black "TregubovP"]
[Result "0-1"]
[WhiteElo "2337"]
[BlackElo "2533"]
[TimeControl "180+2"]
[EndTime "14:26:46 PDT"]
[Termination "TregubovP won by resignation"]

1. e4 {[%clk 0:03:01.9]} 1... c5 {[%clk 0:02:59.4]} 2. Nf3 {[%clk 0:02:57]} 2...
e6 {[%clk 0:03:00.5]} 3. d4 {[%clk 0:02:57.4]} 3... cxd4 {[%clk 0:03:01.6]} 4.
Nxd4 {[%clk 0:02:58.7]} 4... Nc6 {[%clk 0:03:03.2]} 5. Nc3 {[%clk 0:02:56.3]}
5... Nf6 {[%clk 0:03:04.4]} 6. Be3 {[%clk 0:02:57]} 6... Bb4 {[%clk 0:03:04.4]}
7. Nb5 {[%clk 0:02:57.3]} 7... Nxe4 {[%clk 0:02:55.3]} 8. Qg4 {[%clk 0:02:57.3]}
8... Nf6 {[%clk 0:02:12.3]} 9. Qxg7 {[%clk 0:02:54.3]} 9... Rg8 {[%clk
0:02:13.5]} 10. Qh6 {[%clk 0:02:54.5]} 10... a6 {[%clk 0:02:14.8]} 11. Nd4
{[%clk 0:02:54]} 11... Bf8 {[%clk 0:01:48.9]} 12. Qh3 {[%clk 0:02:46.9]} 12...
d5 {[%clk 0:01:47.2]} 13. Nxc6 {[%clk 0:02:10.8]} 13... bxc6 {[%clk 0:01:47.7]}
14. Qf3 {[%clk 0:02:04.5]} 14... e5 {[%clk 0:01:45.1]} 15. Bd2 {[%clk
0:01:59.6]} 15... Bg4 {[%clk 0:01:42.1]} 16. Qd3 {[%clk 0:01:58.5]} 16... Qd7
{[%clk 0:01:31.4]} 17. Na4 {[%clk 0:01:55.7]} 17... Bf5 {[%clk 0:01:22.5]} 18.
Qb3 {[%clk 0:01:55]} 18... Qc7 {[%clk 0:01:14.5]} 19. Qf3 {[%clk 0:01:44.7]}
19... Bxc2 {[%clk 0:01:10.8]} 20. Qxf6 {[%clk 0:01:44.6]} 20... Bxa4 {[%clk
0:01:11.7]} 21. Bd3 {[%clk 0:01:41.9]} 21... e4 {[%clk 0:00:58.5]} 22. Be2
{[%clk 0:01:38.6]} 22... Bg7 {[%clk 0:00:55.9]} 23. Qg5 {[%clk 0:01:38.5]} 23...
Qe5 {[%clk 0:00:55.9]} 24. Qe3 {[%clk 0:01:25.9]} 24... Qd4 {[%clk 0:00:32.7]}
25. Qh3 {[%clk 0:01:19.4]} 25... Qxb2 {[%clk 0:00:27.8]} 26. O-O {[%clk
0:01:19.1]} 26... Qxd2 {[%clk 0:00:27.9]} 27. Qxh7 {[%clk 0:01:18.9]} 27... Kf8
{[%clk 0:00:27.9]} 28. Bh5 {[%clk 0:01:16.2]} 28... Qg5 {[%clk 0:00:23.1]} 29.
h4 {[%clk 0:01:12.1]} 29... Qh6 {[%clk 0:00:20.9]} 30. Qf5 {[%clk 0:01:12]}
30... Qf6 {[%clk 0:00:22]} 31. Qh3 {[%clk 0:01:11]} 31... Rh8 {[%clk 0:00:22.8]}
32. g4 {[%clk 0:01:09.1]} 32... c5 {[%clk 0:00:19.3]} 33. Rab1 {[%clk
0:01:08.5]} 33... Bd7 {[%clk 0:00:19.4]} 34. Qa3 {[%clk 0:01:06.5]} 34... Rc8
{[%clk 0:00:19.1]} 35. Rb7 {[%clk 0:01:05.8]} 35... Be6 {[%clk 0:00:19.7]} 36.
f3 {[%clk 0:01:03.3]} 36... e3 {[%clk 0:00:17.8]} 37. Qxe3 {[%clk 0:00:56.6]}
37... Qxh4 {[%clk 0:00:18.9]} 38. Qf4 {[%clk 0:00:51.1]} 38... Bd4+ {[%clk
0:00:19.5]} 39. Kg2 {[%clk 0:00:50.4]} 39... Rxh5 {[%clk 0:00:21]} 40. Rxf7+
{[%clk 0:00:46.8]} 40... Bxf7 {[%clk 0:00:21.3]} 41. Qd6+ {[%clk 0:00:47.4]}
41... Kg8 {[%clk 0:00:22.4]} 42. gxh5 {[%clk 0:00:47.7]} 42... Qg5+ {[%clk
0:00:23.5]} 43. Kh1 {[%clk 0:00:46.6]} 43... Qxh5+ {[%clk 0:00:24.7]} 44. Kg2
{[%clk 0:00:46.8]} 44... Qg6+ {[%clk 0:00:26.2]} 45. Kh1 {[%clk 0:00:46.9]}
45... Qxd6 {[%clk 0:00:26.6]} 0-1

[Event "*** Titled Tuesday Blitz"]
[Site "Chess.com"]
[Date "2019.05.07"]
[Round "6"]
[White "xamax2000"]
[Black "GrigorGrigorov"]
[Result "0-1"]
[WhiteElo "2632"]
[BlackElo "2833"]
[TimeControl "180+2"]
[EndTime "14:26:59 PDT"]
[Termination "GrigorGrigorov won by checkmate"]

1. e4 {[%clk 0:03:01.9]} 1... c6 {[%clk 0:03:00.8]} 2. d4 {[%clk 0:02:56.1]}
2... d5 {[%clk 0:03:01.6]} 3. exd5 {[%clk 0:02:55.6]} 3... cxd5 {[%clk
0:03:02.4]} 4. Bd3 {[%clk 0:02:57.5]} 4... Nf6 {[%clk 0:03:02.4]} 5. c3 {[%clk
0:02:55.8]} 5... Bg4 {[%clk 0:02:59.2]} 6. Qb3 {[%clk 0:02:55.4]} 6... Qc7
{[%clk 0:02:42.7]} 7. Ne2 {[%clk 0:02:48.8]} 7... Nc6 {[%clk 0:02:34.8]} 8. Bf4
{[%clk 0:02:47.9]} 8... Qd7 {[%clk 0:02:34.6]} 9. O-O {[%clk 0:02:47.9]} 9... e6
{[%clk 0:02:34.9]} 10. Ng3 {[%clk 0:02:48.7]} 10... h5 {[%clk 0:02:20.4]} 11. f3
{[%clk 0:02:37.9]} 11... h4 {[%clk 0:02:18.2]} 12. Ne2 {[%clk 0:02:31.8]} 12...
Bh5 {[%clk 0:02:13.1]} 13. Bg5 {[%clk 0:02:26]} 13... Bd6 {[%clk 0:02:10.6]} 14.
h3 {[%clk 0:02:16.6]} 14... Ng8 {[%clk 0:01:49.1]} 15. Nd2 {[%clk 0:02:13.5]}
15... Nge7 {[%clk 0:01:49.2]} 16. Bxh4 {[%clk 0:02:05.2]} 16... Bg6 {[%clk
0:01:37.7]} 17. Bxg6 {[%clk 0:02:00.9]} 17... Nxg6 {[%clk 0:01:27.1]} 18. Bg3
{[%clk 0:02:01.3]} 18... Bxg3 {[%clk 0:01:26]} 19. Nxg3 {[%clk 0:02:03.2]} 19...
Nf4 {[%clk 0:01:20.9]} 20. Rae1 {[%clk 0:01:52.1]} 20... O-O-O {[%clk
0:01:10.4]} 21. Qc2 {[%clk 0:01:51.3]} 21... Qc7 {[%clk 0:01:08.4]} 22. Ne2
{[%clk 0:01:45.2]} 22... Nxe2+ {[%clk 0:01:08]} 23. Rxe2 {[%clk 0:01:45.9]}
23... Nxd4 {[%clk 0:01:09.6]} 24. Qd3 {[%clk 0:01:43.9]} 24... Nxe2+ {[%clk
0:01:10]} 25. Qxe2 {[%clk 0:01:45.8]} 25... Qg3 {[%clk 0:01:00.1]} 26. Kh1
{[%clk 0:01:39.9]} 26... Rh4 {[%clk 0:00:56.3]} 27. Rc1 {[%clk 0:01:40.9]} 27...
Rdh8 {[%clk 0:00:51.8]} 28. Nf1 {[%clk 0:01:41.9]} 28... Qf4 {[%clk 0:00:42.4]}
29. Rc2 {[%clk 0:01:42.6]} 29... Qc4 {[%clk 0:00:37.9]} 30. Qe1 {[%clk
0:01:39.7]} 30... Kb8 {[%clk 0:00:38.5]} 31. b3 {[%clk 0:01:39.1]} 31... Qd3
{[%clk 0:00:38.8]} 32. Rc1 {[%clk 0:01:39.8]} 32... g5 {[%clk 0:00:35.5]} 33.
Qe5+ {[%clk 0:01:33.6]} 33... Ka8 {[%clk 0:00:36.8]} 34. Qxg5 {[%clk 0:01:35.5]}
34... a6 {[%clk 0:00:31.9]} 35. Nh2 {[%clk 0:01:33.2]} 35... R4h6 {[%clk
0:00:27.3]} 36. c4 {[%clk 0:01:04.6]} 36... Rg6 {[%clk 0:00:22]} 37. Qe5 {[%clk
0:01:02.8]} 37... Rhg8 {[%clk 0:00:21.6]} 38. Ng4 {[%clk 0:00:46.6]} 38... f5
{[%clk 0:00:21.6]} 39. Nf6 {[%clk 0:00:48]} 39... Rxg2 {[%clk 0:00:20.8]} 40.
Nxg8 {[%clk 0:00:47.9]} 40... Qxf3 {[%clk 0:00:21.8]} 41. Qc3 {[%clk 0:00:34.3]}
41... Qe2 {[%clk 0:00:22.6]} 42. Rc2 {[%clk 0:00:19.9]} 42... Qf1# {[%clk
0:00:23]} 0-1

[Event "*** Titled Tuesday Blitz"]
[Site "Chess.com"]
[Date "2019.05.07"]
[Round "6"]
[White "Chessdude1987"]
[Black "NM2019"]
[Result "1-0"]
[WhiteElo "2124"]
[BlackElo "2146"]
[TimeControl "180+2"]
[EndTime "14:27:00 PDT"]
[Termination "Chessdude1987 won by resignation"]

1. e4 {[%clk 0:03:00.4]} 1... c5 {[%clk 0:02:59.6]} 2. b3 {[%clk 0:03:00.7]}
2... Nc6 {[%clk 0:02:58.8]} 3. Bb2 {[%clk 0:03:00.6]} 3... Nf6 {[%clk
0:03:00.1]} 4. Nc3 {[%clk 0:02:57.1]} 4... d5 {[%clk 0:03:00.5]} 5. exd5 {[%clk
0:02:53.6]} 5... Nxd5 {[%clk 0:03:01.3]} 6. Bc4 {[%clk 0:02:53]} 6... Nb6 {[%clk
0:03:02.1]} 7. Bb5 {[%clk 0:02:52]} 7... Qd6 {[%clk 0:03:01.7]} 8. Ne4 {[%clk
0:02:45.3]} 8... Qg6 {[%clk 0:02:55.1]} 9. Qf3 {[%clk 0:02:40.4]} 9... e6 {[%clk
0:02:47.4]} 10. Bxc6+ {[%clk 0:02:31]} 10... bxc6 {[%clk 0:02:48]} 11. Ne2
{[%clk 0:02:23.4]} 11... Nd5 {[%clk 0:02:39.8]} 12. O-O-O {[%clk 0:02:12.1]}
12... f5 {[%clk 0:02:38.1]} 13. N4g3 {[%clk 0:02:09.4]} 13... h5 {[%clk
0:02:37.2]} 14. Nf4 {[%clk 0:01:59]} 14... Qg4 {[%clk 0:02:23]} 15. Ngxh5 {[%clk
0:01:32]} 15... Qxf3 {[%clk 0:02:17.8]} 16. gxf3 {[%clk 0:01:32.5]} 16... Kf7
{[%clk 0:02:06.8]} 17. c4 {[%clk 0:01:17.2]} 17... Nxf4 {[%clk 0:02:07.5]} 18.
Nxf4 {[%clk 0:01:17.9]} 18... Bd6 {[%clk 0:02:08.7]} 19. Nd3 {[%clk 0:01:17.6]}
19... Rh3 {[%clk 0:01:54.4]} 20. Rdg1 {[%clk 0:01:07.6]} 20... g6 {[%clk
0:01:47.8]} 21. Be5 {[%clk 0:00:51.6]} 21... Bxe5 {[%clk 0:01:39.9]} 22. Nxe5+
{[%clk 0:00:52]} 22... Kf6 {[%clk 0:01:41.4]} 23. f4 {[%clk 0:00:52.7]} 23...
Rh6 {[%clk 0:01:37.1]} 24. Rg3 {[%clk 0:00:52.5]} 24... Bb7 {[%clk 0:01:31.3]}
25. Rhg1 {[%clk 0:00:47.6]} 25... Rg8 {[%clk 0:01:32]} 26. h4 {[%clk 0:00:44.7]}
26... Bc8 {[%clk 0:01:17.4]} 27. Nf3 {[%clk 0:00:32.8]} 27... Bd7 {[%clk
0:01:13]} 28. Rg5 {[%clk 0:00:31.7]} 28... Be8 {[%clk 0:01:12.4]} 29. h5 {[%clk
0:00:31.6]} 29... Bf7 {[%clk 0:01:10]} 30. hxg6 {[%clk 0:00:29.3]} 30... Rhxg6
{[%clk 0:01:09.2]} 31. Rxg6+ {[%clk 0:00:28.5]} 31... Bxg6 {[%clk 0:01:09.1]}
32. Ne5 {[%clk 0:00:28.9]} 32... Bf7 {[%clk 0:01:04.9]} 33. Rxg8 {[%clk
0:00:29]} 33... Bxg8 {[%clk 0:01:06.3]} 34. Nxc6 {[%clk 0:00:29.9]} 34... a6
{[%clk 0:01:06.1]} 35. Nb8 {[%clk 0:00:30.3]} 35... e5 {[%clk 0:01:06.9]} 36.
Nxa6 {[%clk 0:00:25.8]} 36... exf4 {[%clk 0:01:07.9]} 37. Nxc5 {[%clk 0:00:26]}
37... Ke5 {[%clk 0:01:09.4]} 38. f3 {[%clk 0:00:22.7]} 38... Bf7 {[%clk
0:01:07.9]} 39. Nd3+ {[%clk 0:00:23]} 39... Kd4 {[%clk 0:01:08.4]} 40. Nxf4
{[%clk 0:00:24]} 40... Be8 {[%clk 0:01:06.6]} 41. Kc2 {[%clk 0:00:24.3]} 41...
Bc6 {[%clk 0:01:07.3]} 42. Ne2+ {[%clk 0:00:24.6]} 42... Kc5 {[%clk 0:01:05.9]}
43. d4+ {[%clk 0:00:25.4]} 43... Kb4 {[%clk 0:01:06.8]} 44. d5 {[%clk
0:00:26.2]} 44... Bd7 {[%clk 0:01:07.6]} 45. f4 {[%clk 0:00:27.1]} 45... Ka3
{[%clk 0:01:07.7]} 46. Nd4 {[%clk 0:00:26]} 46... Kxa2 {[%clk 0:01:07.8]} 47. c5
{[%clk 0:00:26.9]} 47... Ka3 {[%clk 0:01:07.6]} 48. c6 {[%clk 0:00:27.7]} 48...
Bc8 {[%clk 0:01:09.1]} 49. d6 {[%clk 0:00:28.7]} 1-0

[Event "*** Titled Tuesday Blitz"]
[Site "Chess.com"]
[Date "2019.05.07"]
[Round "6"]
[White "LiamVrolijk"]
[Black "ilm2034"]
[Result "1-0"]
[WhiteElo "2524"]
[BlackElo "2407"]
[TimeControl "180+2"]
[EndTime "14:27:02 PDT"]
[Termination "LiamVrolijk won by resignation"]

1. d4 {[%clk 0:03:01.8]} 1... Nf6 {[%clk 0:02:58.2]} 2. c4 {[%clk 0:03:02.8]}
2... c5 {[%clk 0:02:56.6]} 3. d5 {[%clk 0:03:03.5]} 3... b5 {[%clk 0:02:58.1]}
4. Qc2 {[%clk 0:03:03.7]} 4... bxc4 {[%clk 0:02:52.2]} 5. e4 {[%clk 0:03:04.3]}
5... e6 {[%clk 0:02:53.5]} 6. Bxc4 {[%clk 0:03:02.9]} 6... exd5 {[%clk
0:02:54.7]} 7. exd5 {[%clk 0:03:04.8]} 7... g6 {[%clk 0:02:52.4]} 8. Nf3 {[%clk
0:02:55.9]} 8... Bg7 {[%clk 0:02:50.3]} 9. O-O {[%clk 0:02:53.9]} 9... O-O
{[%clk 0:02:51.1]} 10. Nc3 {[%clk 0:02:54.8]} 10... d6 {[%clk 0:02:52.2]} 11.
Bf4 {[%clk 0:02:52.5]} 11... Nh5 {[%clk 0:02:49.2]} 12. Bg5 {[%clk 0:02:53.4]}
12... Qc7 {[%clk 0:02:46.2]} 13. Nb5 {[%clk 0:02:49.1]} 13... Qb6 {[%clk
0:02:47.3]} 14. Be7 {[%clk 0:02:50.2]} 14... Bf5 {[%clk 0:02:45.1]} 15. Qc1
{[%clk 0:02:42.8]} 15... Re8 {[%clk 0:02:36.8]} 16. Bxd6 {[%clk 0:02:28.1]}
16... Nd7 {[%clk 0:02:32.4]} 17. Bc7 {[%clk 0:02:18.7]} 17... Qb7 {[%clk
0:02:29.8]} 18. Ba5 {[%clk 0:02:19.9]} 18... Be4 {[%clk 0:02:03.8]} 19. Ng5
{[%clk 0:01:43.4]} 19... Bxd5 {[%clk 0:01:10.5]} 20. Nd6 {[%clk 0:01:21.4]}
20... Qc6 {[%clk 0:01:11.2]} 21. Nxe8 {[%clk 0:01:19.3]} 21... Rxe8 {[%clk
0:01:10.8]} 22. Bxd5 {[%clk 0:01:02.6]} 22... Qxd5 {[%clk 0:01:12.7]} 23. Rd1
{[%clk 0:01:04]} 23... Bd4 {[%clk 0:01:12.9]} 24. Nf3 {[%clk 0:01:05]} 24... Ne5
{[%clk 0:00:47.1]} 25. Nxd4 {[%clk 0:00:44.5]} 25... cxd4 {[%clk 0:00:47.4]} 26.
Bc3 {[%clk 0:00:46.1]} 26... Nc6 {[%clk 0:00:28.9]} 27. Re1 {[%clk 0:00:42.6]}
27... Rxe1+ {[%clk 0:00:23.3]} 28. Bxe1 {[%clk 0:00:44.5]} 28... g5 {[%clk
0:00:16.3]} 29. Bd2 {[%clk 0:00:42]} 29... h6 {[%clk 0:00:16.8]} 30. Qd1 {[%clk
0:00:41.1]} 30... Ne5 {[%clk 0:00:17.6]} 31. Qxh5 {[%clk 0:00:41.3]} 31... Qe4
{[%clk 0:00:17.2]} 32. Re1 {[%clk 0:00:41.2]} 32... Qf5 {[%clk 0:00:16.7]} 33.
Qe2 {[%clk 0:00:38.4]} 33... Nd3 {[%clk 0:00:16.2]} 34. Rd1 {[%clk 0:00:38.9]}
34... Nxb2 {[%clk 0:00:15.7]} 35. Rc1 {[%clk 0:00:36.7]} 35... Nd3 {[%clk
0:00:16.9]} 36. Rb1 {[%clk 0:00:36]} 36... Nxf2 {[%clk 0:00:16.6]} 37. Rb8+
{[%clk 0:00:37.3]} 37... Kg7 {[%clk 0:00:17.4]} 38. Qxf2 {[%clk 0:00:38.6]}
38... Qc2 {[%clk 0:00:19]} 39. Be1 {[%clk 0:00:37.2]} 39... Qe4 {[%clk
0:00:19.7]} 40. Rb4 {[%clk 0:00:37.1]} 1-0